Cogmind - Beta 15 @@@ ROGUE MODE // 2025.05.31 @ 17:29:12 Player: Ike Jones Result: Self-destructed Performance ------------- Evolutions (1) 500 Regions Visited (2) 400 Robots Destroyed (16) 80 Value Destroyed (313) 313 Prototype IDs (2) 40 Alien Tech Used (0) 0 Bonus (0) 0 TOTAL SCORE: 1333 Bonus ------- None Cogmind --------- Core Integrity 235/400 Matter 295/300 Energy 100/100 System Corruption 0% Temperature Cool (0) Movement Treading (160) Location -9/Materials Parts ------- > --- POWER (2) -------- (None) > --- PROPULSION (3) --- Light Treads Wheel > --- UTILITY (2) ------ Improved Targeting Computer > --- WEAPON (2) ------- (None) > --- INVENTORY (5) ---- Light Ion Engine EM Pulse Gun Small Laser Peak State ------------ > --- POWER ------------ Ion Engine Ion Engine > --- PROPULSION ------- Light Treads Light Treads Compact Wheel > --- UTILITY ---------- Heat Sink Improved Targeting Computer > --- WEAPON ----------- EM Pulse Gun Particle Gun > --- INVENTORY -------- Small Laser Grenade Launcher [Rating: 11] Favorites ----------- Power Light Ion Engine Engine Light Ion Engine Propulsion Light Treads Treads Light Treads Wheel Wheel Utility Improved Terrain Scanner Device Improved Terrain Scanner Storage Large Storage Unit Processor Improved Targeting Computer Weapon Small Laser Energy Gun Small Laser Launcher Grenade Launcher Build | -11 -10 -9 ------- Run | Yrd Mat Mat Slots Evolved 2 | . . 2 Power 1 | . . 1 Propulsion 1 | . . 1 Utility . | . . . Weapon . | . . . Parts Attached 17 | 6 2 9 Power 4 | 1 . 3 Engine 4 | 1 . 3 Core . | . . . Reactor . | . . . Propulsion 5 | 2 . 3 Treads 2 | 2 . . Leg . | . . . Wheel 3 | . . 3 Hover . | . . . Flight . | . . . Utility 4 | 1 1 2 Device 2 | 1 . 1 Storage 1 | . 1 . Processor 1 | . . 1 Hackware . | . . . Protection . | . . . Artifact . | . . . Weapon 4 | 2 1 1 Energy Gun 3 | 2 . 1 Energy Cannon . | . . . Ballistic Gun . | . . . Ballistic Cannon . | . . . Launcher 1 | . 1 . Special Weapon . | . . . Impact Weapon . | . . . Slashing Weapon . | . . . Piercing Weapon . | . . . Special Melee Weapon . | . . . Unidentified Prototypes . | . . . Parts Lost 8 | . . 8 Power 2 | . . 2 Propulsion 3 | . . 3 Utility 1 | . . 1 Weapon 2 | . . 2 Highest Loss Streak 8 | . . 8 To Critical Strikes . | . . . Average Backups 2 | 2 2 2 Power . | . 1 . Propulsion . | . . . Utility . | . . . Weapon 1 | 1 . 1 Tool/Special . | . . . Unused Backups 2 | . 2 . Power . | . . . Propulsion . | . . . Utility 1 | . 1 . Weapon 1 | . 1 . Tool/Special . | . . . Average Slot Usage (%) 88 | . 93 83 Engine 16 | . 14 18 Treads 23 | . 28 19 Wheel 2 | . . 4 Device 9 | . 14 5 Storage 6 | . 7 5 Processor 5 | . . 9 Energy Gun 21 | . 25 18 Launcher 2 | . 2 2 Peak Build Rating 11 | 8 9 11 Average Rating 8 | 4 8 9 On Entrance 5 | . 8 9 Naked Turns . | . . . Heaviest Build 33 | 7 28 33 Greatest Support 40 | 40 40 40 Greatest Overweight (x) 2 | . . 2 Average Overweight (x) . | . . . Largest Inventory Capacity 15 | 5 15 15 Average Capacity 9 | 5 10 9 Most Carried 5 | 5 4 5 Average Carried 2 | 2 2 2 Final Capacity 15 | 5 15 5 Final Carried 3 | 3 2 3 Class Distribution -------------------- 97% | Mutant Dominant Class ---------------- Mutant | -10/Materials Mutant | -9/Materials Resources | -11 -10 -9 ----------- Run | Yrd Mat Mat Matter Collected 487 | 248 21 218 Remotely . | . . . Salvage Created 398 | 39 27 332 Parts 32 | 5 4 23 Haulers Intercepted . | . . . Recyclers Shooed . | . . . Parts Field Recycled . | . . . Retrieved Matter . | . . . Parts Self-Destructed . | . . . Prevented . | . . . Kills | -11 -10 -9 ------- Run | Yrd Mat Mat Combat Hostiles Destroyed 8 | . 2 6 Guns 4 | . . 4 AOE 4 | . 2 2 Classes Destroyed 9 | 2 2 5 Worker 3 | 1 . 2 Builder 1 | . . 1 Tunneler 1 | 1 . . Recycler 1 | . . 1 Watcher 2 | . 1 1 Swarmer 2 | . . 2 Grunt 4 | . 2 2 Brawler 1 | . . 1 Sentry 1 | . . 1 Best Kill Streak 4 | 2 3 4 Combat Bots Only 2 | . 2 2 Max Kills in Single Turn 2 | 1 2 2 Gunslinging . | . . . Exploded 2 | . 1 2 Melee . | . . . Uniques/NPCs Destroyed . | . . . Combat | -11 -10 -9 -------- Run | Yrd Mat Mat Hostile Shots Fired 93 | . 14 79 Missed 23 | . 6 17 Hits 70 | . 8 62 Projectile 70 | . 8 62 Critical Strikes 1 | . . 1 Damage Taken 986 | . 142 844 Core 214 | . 49 165 Absorbed by Shields . | . . . Core Remaining (%) 90 | 100 80 . Volleys Fired 40 | 4 7 29 Largest 2 | 2 2 2 Hottest 105 | 80 80 105 Shots Fired 74 | 8 13 53 Gun 69 | 8 9 52 Cannon . | . . . Launcher 5 | . 4 1 Special . | . . . Kinetic . | . . . Thermal 47 | 4 6 37 Explosive 5 | . 4 1 Electromagnetic 22 | 4 3 15 Robot Hit Streak 9 | 3 7 9 Robot Miss Streak 5 | 1 3 5 Penetration Max . | . . . Secondary Targets . | . . . Shots Hit Robots 44 | 5 7 32 Core Hits 24 | 3 5 16 Critical Kills . | . . . Critical Parts Destroyed . | . . . Critical Strikes . | . . . Melee Attacks . | . . . Impact . | . . . Slashing . | . . . Piercing . | . . . Sneak Attacks . | . . . Combat Hostiles . | . . . Follow-up Attacks . | . . . Damage Inflicted 1008 | 63 339 606 Guns 566 | 63 57 446 Cannons . | . . . Explosions 442 | . 282 160 Melee . | . . . Ramming . | . . . Kinetic . | . . . Thermal 403 | 24 45 334 Explosive 417 | . 282 135 Electromagnetic 188 | 39 12 137 Impact . | . . . Slashing . | . . . Piercing . | . . . Highest Corruption . | . . . Average Corruption . | . . . Corruption Purged . | . . . Corruption Blocked . | . . . Overload Shots . | . . . Overflow Damage 13 | . 13 . Projectiles . | . . . Explosions 13 | . 13 . Melee . | . . . Knockbacks . | . . . Impact . | . . . Kinetic . | . . . Secondary . | . . . Self-Inflicted Damage 44 | . 19 25 Shots 2 | . 1 1 Rammed 1 | . 1 . Targets Rammed 1 | . 1 . Kicked . | . . . Crushed . | . . . Highest Temperature 324 | 36 54 324 Average Temperature 86 | 16 16 105 Received Heat Transfer 378 | . 69 309 Effects 2 | . . 2 Shutdowns 1 | . . 1 Matter Decay 1 | . . 1 Siege Activations . | . . . Martial Activations . | . . . Shielding Activations . | . . . Robots Disrupted . | . . . Combat Hostiles . | . . . Robots Corrupted . | . . . Combat Hostiles . | . . . Parts Fried . | . . . Impact Corruptions . | . . . Robots Melted . | . . . Combat Hostiles . | . . . Parts Melted 1 | . . 1 Heat Transferred 891 | 50 100 741 Parts Sabotaged . | . . . Parts Stolen . | . . . Parts Stripped . | . . . Power Chain Reactions 1 | . . 1 Alert | -11 -10 -9 ------- Run | Yrd Mat Mat Maximum Alert Level . | . . . Low Security (%) 100 | 100 100 100 Level 1 . | . . . Level 2 . | . . . Level 3 . | . . . Level 4 . | . . . Level 5 . | . . . High Security . | . . . Max Security . | . . . Peak Influence 88 | 5 76 88 Initial 27 | . . 27 Average 15 | . 7 26 Influence Increases 314 | 10 86 218 Destroy 0b10 Robot/C 160 | . 40 120 Destroy 0b10 Robot/NC 40 | 10 5 25 Destroy Leader 44 | . 12 32 Disable Machine 15 | . 15 . Destroy Structure 25 | . 14 11 Partial Spotted 15 | . . 15 Lose Combat Pursuer 15 | . . 15 Influence Decreases 314 | 10 20 284 Entered New Map 39 | . . 39 Time Decay 210 | 10 20 180 Lost Part 65 | . . 65 Squads Dispatched 1 | . . 1 Investigation . | . . . Extermination . | . . . Reinforcement 1 | . . 1 Assault . | . . . Garrison . | . . . Intercept . | . . . Searches Triggered . | . . . Construction Impeded . | . . . Haulers Reinforced . | . . . Active Scanning Responses . | . . . Cargo Convoy Interrupts . | . . . Stealth | -11 -10 -9 --------- Run | Yrd Mat Mat Distress Signals 2 | . . 2 Communications Jammed . | . . . Distress Signals . | . . . Times Spotted 26 | . 7 19 Peak Tracking Total 11 | . 3 11 Tactical Retreats 1 | . . 1 Traps | -11 -10 -9 ------- Run | Yrd Mat Mat Traps Triggered . | . . . Indirectly . | . . . Trap Hack Attempts . | . . . Triggered . | . . . Disarmed . | . . . Reprogrammed . | . . . Reused . | . . . Traps Extracted . | . . . Installed . | . . . Triggered . | . . . Machines | -11 -10 -9 ---------- Run | Yrd Mat Mat Machines Disabled 1 | . 1 . Max in Single Turn 1 | . 1 . Machines Repaired . | . . . Machines Dismantled . | . . . Machines Sabotaged . | . . . Overloaded Fab Kills . | . . . Hacking | -11 -10 -9 --------- Run | Yrd Mat Mat Machines Accessed 4 | . 3 1 Terminals 4 | . 3 1 Fabricators . | . . . Repair Stations . | . . . Recycling Units . | . . . Scanalyzers . | . . . Garrison Access . | . . . Total Hacks 13 | . 7 6 Successful 7 | . 3 4 Failed 6 | . 4 2 Catastrophic . | . . . Database Lockouts . | . . . Manual . | . . . Terminals 13 | . 7 6 Fabricators . | . . . Repair Stations . | . . . Recycling Units . | . . . Scanalyzers . | . . . Garrison Access . | . . . Terminal Hacks 7 | . 3 4 Record 3 | . 1 2 Prototype ID Bank 1 | . . 1 Alert Level 2 | . 1 1 Investigation Status 1 | . 1 . Fabricator Hacks . | . . . Repair Station Hacks . | . . . Recycling Unit Hacks . | . . . Scanalyzer . | . . . Garrison Access Hacks . | . . . Unauthorized Hacks . | . . . Terminals . | . . . Fabricators . | . . . Repair Stations . | . . . Recycling Units . | . . . Scanalyzers . | . . . Garrison Access . | . . . Data Cores Recovered . | . . . Used . | . . . Hacking Detections 3 | . 2 1 Full Trace Events 1 | . 1 . Feedback Events . | . . . Feedback Blocked . | . . . Robot Schematics Acquired . | . . . Robots Built . | . . . Authchips . | . . . Time . | . . . Total Robot Build Rating . | . . . Part Schematics Acquired . | . . . Parts Built . | . . . Authchips . | . . . Time . | . . . Total Part Build Rating . | . . . Parts Repaired . | . . . Time . | . . . Parts Recycled . | . . . Recycled Matter . | . . . Retrieved Matter . | . . . Retrieved Components . | . . . Parts Scanalyzed . | . . . Part Schematics Acquired . | . . . Parts Damaged . | . . . Bothacking | -11 -10 -9 ------------ Run | Yrd Mat Mat Used RIF Installer . | . . . Robots Hacked . | . . . Non-combat . | . . . Combat . | . . . Robot Hacks Applied . | . . . Relay Couplers Released . | . . . Fabnet Peak Effective % . | . . . Robots Rewired . | . . . Allies Hacked . | . . . Hacks Repelled . | . . . Allies | -11 -10 -9 -------- Run | Yrd Mat Mat Total Allies . | . . . Largest Group . | . . . Highest-Rated Group . | . . . Highest-Rated Ally . | . . . Total Orders . | . . . Ally Attacks . | . . . Total Damage . | . . . Kills . | . . . Allies Corrupted . | . . . Allies Melted . | . . . Intel | -11 -10 -9 ------- Run | Yrd Mat Mat Active Infowar (turns) 448 | 32 372 44 Terrain 448 | 32 372 44 Robot Analysis Total . | . . . Derelict Logs Recovered . | . . . Drone Launches . | . . . Drone Recoveries . | . . . Exploration | -11 -10 -9 ------------- Run | Yrd Mat Mat Turns Passed 919 | 127 372 420 Spaces Moved 523 | 90 209 224 Core 39 | 38 . 1 Treads 398 | 52 209 137 Legs . | . . . Wheels 86 | . . 86 Hover . | . . . Flight . | . . . Fastest Speed 50 | 50 160 80 Average Speed 140 | 113 160 133 Slowest Speed 160 | 160 160 160 Overloaded Moves . | . . . Propulsion Burnouts . | . . . Robots Hopped . | . . . Potential Cave-ins . | . . . Cave-ins Triggered . | . . . Exploration Rate (%) 14 | 4 25 14 Regions Visited 2 Branch Regions . Pre-discovered Areas . | . . . Known Exits Taken . | . . . Unknown Exits Taken 2 | 1 1 . Scrap Searched . | . . . Spaces Dug . | . . . Terrain Destroyed 28 | . 19 9 Melee . | . . . Projectile . | . . . AOE 28 | . 19 9 Terrain Rammed . | . . . Walls Destroyed . | . . . Machines Disabled . | . . . Actions | -11 -10 -9 --------- Run | Yrd Mat Mat Total 627 | 105 234 288 Wait 20 | . 12 8 Move 521 | 89 208 224 Hop . | . . . Pick Up 16 | 6 2 8 Fast Attach 4 | 3 . 1 Attach 9 | 3 1 5 Detach 1 | . . 1 Swap 9 | . 1 8 Drop 6 | . 2 4 Fire 40 | 4 7 29 Melee . | . . . Ram . | . . . Kick . | . . . Crush 1 | . 1 . Escape Stasis . | . . . Rewire . | . . . Trap . | . . . Miscellaneous . | . . . Route ------- -11/Scrapyard -10/Materials -9/Materials History --------- Turn | Location | Event 25 | -11/Scrapyard | Discovered new exit (range 15) 128 | -11/Scrapyard | Entered Materials 318 | -10/Materials | Build established: Mutant 423 | -10/Materials | Discovered new exit (range 3) 500 | -10/Materials | Entered another Materials area 500 | -9/Materials | Evolved 2 slots: Power x1, Propulsion x1 920 | -9/Materials | Self-destructed Last Messages --------------- K-01 Serf collects debris. Com. Wheel destroyed. K-01 Serf collects debris. K-01 Serf destroyed. Acquired Lgt. Ion Engine. K-01 Serf collects debris. Acquired 5 matter. Lgt. Treads destroyed. Wheel destroyed. Acquired Wheel. Ion Engine destroyed. Extracted 15 matter. W-16 Scout sends out distress signal. Particle Gun destroyed. C-30 ARC bursts open, deploying its payload. G-47 Trooper unfolds itself. G-34 Mercenary unfolds itself. K-01 Serf collects debris. Grenade Launcher destroyed. K-01 Serf collects debris. Map ----- +----------------------------------------------------+ | ????????????=% ????????????????????????????????? | | ??????#????? [ #????????????????????????????????? | | ????????????#% #????????????????????????????????? | | ????????????#* #????????????????????????????????? | | ????????????# #????????????????????????????????? | | ????????????# #????????????????????????????????? | | ######??????# #????????????????????????????????? | | ######## ####### ?????????????????????? | | "" # #????????????????????? | | """ # #????????????????????? | | """ # #????????????????????? | | """ + ############## ?????????????????????? | | "" # #???????????#?? #?????????????????????? | | #! #?????????????# #?????????????????????? | | #% ########??????# ######????????????????? | | ! # # #??????# ?????????????????? | | ###### # #??????# ?????????????????? | | !# # #??????+ ?????????????????? | | %" + """ #??????# ?????????????????? | | !" ! # """ #??????# """ ""??????????????? | | +####" # """ #??????# """ """?????????????? | | ##### ########??????# """ """?????????????? | | # #?????????????# """ """ ?????????? | | # ############### ????????? | | # Y % ! Y ????????? | | ####+############### @ g k ????????? | | ## #??????????# gg % ????????? | | ## """ #??????????###############w !????????? | | ## """ #???????????????????????????????????????? | | ## """ #???????????????????????????????????????? | | ## #???????????????????????????????????????? | | ?# #???????????????????????????????????????? | | ?########???????????????????????????????????????? | | ????????????????????????????????????????????????? | | ????????????????????????????????????????????????? | | ?????????????????????????????????????????????????? | | ?????????????????????????????????????????????????? | | ?????????????????????????????????????????????????? | | ?????????????????????????????????????????????????? | | ?????????????????????????????????????????????????? | | ?????????????????????????????????????????????????? | | ?????????????????????????????????????????????????? | | ?????????????????????????????????????????????????? | | ?????????????????????????????????????????????????? | | ?????????????????????????????????????????????????? | | ?????????????????????????????????????????????????? | | ?????????????????????????????????????????????????? | | ?????????????????????????????????????????????????? | | ?????????????????????????????????????????????????? | | ?????????????????????????????????????????????????? | +----------------------------------------------------+ Best States ------------- Heat Dissipation 38 Energy Generation 15 Energy Capacity 400 Matter Stores 300 Matter Capacity 300 Sight Range 16 Terrain Scan Range 16 Terrain Scan Density 10 Evasion (%) 50 Targeting Accuracy 6 Recoil Reduction 2 Item Schematics ----------------- None Robot Schematics ------------------ None Fabricated ------------ Nothing Repaired ---------- Nothing Alien Tech Used ----------------- None Achievements -------------- None Challenges ------------ None Game ------ Seed AmuletMasterChainsaw Manual? 0 Play Time 00:23:20 Cumulative 6.7 hours Start 2025.05.31 @ 17:06:40 End 2025.05.31 @ 17:29:12 Sessions 1 Manual Loads 0 Difficulty Rogue Special Mode None Game No. 14 Rogue 14 Adventurer 0 Explorer 0 Win Type - Total 0 Types 0/0/0/0/0/0/0/0/0/0 Lore% 2 Gallery% 11 Achievement% 12 Wizard Run 0 Options --------- Layout 1 ASCII 0 Keyboard 0 Movement Arrows Keybinds 0 Fullscreen 1 Font 32/SmallcapsGlow Map View 50x35 Zoom Use 0% Tactical HUD 0 Map Filters NONE Filters NONE Steam 1 RUN: 8ef7e773-6f77-4a6a-881e-516c046f62e3